Cogmind - Beta 13 X2 @@@ ROGUE MODE // 2023.12.20 @ 18:35:29 Player: cptwinky Result: Destroyed by G-67 Veteran with Field Laser Performance ------------- Evolutions (6) 3000 Regions Visited (24) 4800 Robots Destroyed (256) 1280 Value Destroyed (12155) 12155 Prototype IDs (43) 860 Alien Tech Used (0) 0 Bonus (9770) 9770 TOTAL SCORE: 31865 Bonus ------- High Alert Combat Kills 2606 Follower Combat Kills 5386 Entered Garrisons 600 Network Hubs Disabled 400 Met Data Miner 300 Met Imprinter 300 Met Zhirov 300 Built Enhanced Grunts 300 A7 Reached Mainframe 300 Met R17 at Cetus 500 Friendly Fire -1222 Cogmind --------- Core Integrity 0/1150 Matter 185/300 Energy 100/100 System Corruption 14% Temperature Cool (27) Movement Core (50) Location -4/Factory Parts ------- > --- POWER (2) -------- (None) > --- PROPULSION (6) --- (None) > --- UTILITY (9) ------ (None) > --- WEAPON (2) ------- (None) > --- INVENTORY (5) ---- Matter Compressor (250) Encrypted Comm Array Advanced Datajack Large Botcube Peak State ------------ > --- POWER ------------ Antimatter Reactor Light Antimatter Reactor > --- PROPULSION ------- Armored Medium Treads Armored Medium Treads Centrium Heavy Treads Flexi-carbon Leg Flexi-carbon Leg > --- UTILITY ---------- High-capacity Storage Unit Structural Scanner Enhanced Optical Array Advanced Signal Interpreter Improved Weapon Cycler Backup Plating I Improved Focal Shield Experimental Thermal Shield Improved Hacking Suite > --- WEAPON ----------- Tri-rail Accelerator > --- INVENTORY -------- Advanced Power Amplifier Advanced Energy Well Matter Compressor Improved Sensor Array Encrypted Comm Array Improved Component Analysis Suite Long-range Tractor Beam Long-range Proton Cannon Matter Neutralizer Tri-rail Accelerator Tri-rail Accelerator Heavy Gauss Cannon Improved Proton Missile Launcher Advanced Datajack Multitool CR-A16's Pointy Stick Large Botcube [Rating: 119] Favorites ----------- Power Improved Deuterium Engine Engine Improved Deuterium Engine Power Core Light Nuclear Core Reactor Antimatter Reactor Propulsion Improved Medium Treads Treads Improved Medium Treads Leg Carbon-fiber Leg Wheel Compact Wheel Hover Unit Backup Propulsion I Utility Large Storage Unit Device Improved Cooling System Storage Large Storage Unit Processor Enhanced Optical Array Hackware Makeshift System Shield Protection Hardened Light Armor Plating Weapon Heavy Gauss Cannon Energy Gun Gatling Laser Energy Cannon Subdweller Beam Cannon Ballistic Gun Enhanced Autogun Ballistic Cannon Heavy Gauss Cannon Launcher Improved Grenade Launcher Special Weapon Multitool Impact Weapon Heavy Flail Piercing Weapon CR-A16's Pointy Stick Special Melee Weapon Datajack Build | -11 -10 -10 -8 -8 -8 -8 -7 -7 -7 -7 -6 -6 -6 -6 -6 -6 -6 -5 -5 -5 -5 -5 -5 -4 ------- Run | Yrd Mat Sub Mat Gar Mat Gar Fac Low Low Dat Pro Fac Gar Fac Low Low Zio Pro Fac Ext Cet Arc Hub Fac Slots Evolved 12 | . . . 4 . . . 2 . . . . 2 . . . . . . 2 . . . . 2 Power 1 | . . . . . . . . . . . . 1 . . . . . . . . . . . . Propulsion 4 | . . . 1 . . . 1 . . . . . . . . . . . 1 . . . . 1 Utility 7 | . . . 3 . . . 1 . . . . 1 . . . . . . 1 . . . . 1 Weapon . | . . . . . . . . . . . . . . . . . . . . . . . . . Parts Attached 368 | 3 13 22 38 19 4 16 21 12 5 2 14 10 20 6 7 14 2 3 13 19 10 5 8 82 Power 28 | . 1 . 3 1 . 2 1 . . . 1 1 2 . . . . . 2 3 . . 2 9 Engine 14 | . 1 . 3 . . . . . . . 1 . 2 . . . . . 1 2 . . 2 2 Core 9 | . . . . 1 . 2 1 . . . . 1 . . . . . . 1 1 . . . 2 Reactor 5 | . . . . . . . . . . . . . . . . . . . . . . . . 5 Propulsion 41 | 2 . 3 4 . . 1 1 . 1 . 2 4 2 . . . . . 1 1 2 . 2 15 Treads 20 | 2 . 3 1 . . . . . . . . 4 2 . . . . . 1 1 2 . 2 2 Leg 14 | . . . 3 . . 1 1 . 1 . 2 . . . . . . . . . . . . 6 Wheel 5 | . . . . . . . . . . . . . . . . . . . . . . . . 5 Hover 2 | . . . . . . . . . . . . . . . . . . . . . . . . 2 Flight . | . . . . . . . . . . . . . . . . . . . . . . . . . Utility 113 | . 4 3 12 2 3 1 5 5 . . 5 3 2 4 1 8 . 1 6 9 2 2 3 32 Device 62 | . . . 3 1 1 1 . 5 . . 4 . 1 2 1 5 . 1 6 4 . 2 1 24 Storage 4 | . 2 . . . . . . . . . . . . . . . . . . 1 . . . 1 Processor 6 | . . . 2 . . . . . . . . 2 . 1 . 1 . . . . . . . . Hackware 4 | . . . 1 . . . 1 . . . . . . 1 . . . . . 1 . . . . Protection 37 | . 2 3 6 1 2 . 4 . . . 1 1 1 . . 2 . . . 3 2 . 2 7 Artifact . | . . . . . . . . . . . . . . . . . . . . . . . . . Weapon 186 | 1 8 16 19 16 1 12 14 7 4 2 6 2 14 2 6 6 2 2 4 6 6 3 1 26 Energy Gun 38 | . 2 7 1 . . 5 6 4 2 1 3 1 1 . . . . . . . . . . 5 Energy Cannon 10 | . . . 2 4 . . 1 . . . . . . . . . . . . . . . . 3 Ballistic Gun 41 | 1 3 5 11 9 1 4 . . . . . . 1 . . . . . . . . . . 6 Ballistic Cannon 35 | . . . . . . . . . . . . . 7 1 3 3 1 1 2 3 4 1 1 8 Launcher 25 | . . . 3 2 . 2 4 3 1 . 2 . 1 . 2 1 . 1 1 . 1 . . 1 Special Weapon 20 | . 2 4 . . . 1 2 . 1 . . . 2 1 1 1 . . 1 . 1 1 . 2 Impact Weapon 2 | . . . . . . . . . . . . 1 . . . 1 . . . . . . . . Slashing Weapon . | . . . . . . . . . . . . . . . . . . . . . . . . . Piercing Weapon 2 | . . . . . . . . . . . . . . . . . . . . . . 1 . 1 Special Melee Weapon 13 | . 1 . 2 1 . . 1 . . 1 1 . 2 . . . 1 . . 3 . . . . Unidentified Prototypes 6 | . . . 3 . . . . . . . . . . . . . . . . . 2 . 1 . Corrupted Parts 1 | . . . . . . . . . . . . . . . . . . . . . . . . 1 System Corruption 10 | . . . . . . . . . . . . . . . . . . . . . . . . 10 Parts Lost 63 | . 1 4 4 2 . . . . . . 3 . . . . . . . . 1 2 . . 46 Power 14 | . 1 . 1 . . . . . . . 1 . . . . . . . . . . . . 11 Propulsion 17 | . . 1 1 . . . . . . . 1 . . . . . . . . . 1 . . 13 Utility 19 | . . . 2 1 . . . . . . 1 . . . . . . . . 1 . . . 14 Weapon 13 | . . 3 . 1 . . . . . . . . . . . . . . . . 1 . . 8 Highest Loss Streak 21 | . 1 3 2 2 . . . . . . 3 . . . . . . . . 1 1 . . 21 To Critical Strikes 1 | . . . . . . . . . . . . . . . . . . . . . 1 . . . Average Slot Usage (%) 90 | . 98 99 84 90 91 91 84 85 85 85 89 98 98 93 93 92 93 93 94 95 96 88 87 70 Engine 8 | . 13 14 7 4 . . . . . . 3 6 11 13 13 13 13 13 11 8 5 5 7 3 Core 1 | . . . . 2 8 8 7 7 7 7 3 4 1 . . . . . . 1 5 5 3 1 Treads 15 | . 28 28 . . . . . . . . . 2 26 26 26 26 26 26 29 29 27 23 23 11 Leg 6 | . . . 14 16 16 16 17 21 21 21 24 23 . . . . . . . . . . . 3 Device 10 | . . . 6 8 8 12 14 14 14 14 18 19 13 6 13 13 13 13 17 13 11 11 11 12 Storage 7 | . 14 14 7 8 8 8 7 7 7 7 7 6 6 6 6 6 6 6 5 5 5 5 5 4 Processor 8 | . . . 4 8 8 8 7 7 7 7 3 6 13 13 13 13 13 13 11 11 11 11 11 9 Hackware 2 | . . . 7 8 8 8 6 . . . . . . 5 . . . . . 1 5 5 5 4 Protection 10 | . 12 13 16 16 16 11 10 14 14 14 13 13 11 6 6 5 6 6 5 8 11 11 10 3 Energy Gun 4 | . 7 15 . . . 6 10 13 13 13 13 9 1 . . . . . . . . . . . Ballistic Gun 5 | . 17 8 14 14 16 8 . . . . . . . . . . . . . . . . . . Ballistic Cannon 4 | . . . . . . . . . . . . . 10 12 12 12 8 12 10 10 8 2 5 4 Naked Turns 11 | . . . . . . . . . . . . . . . . . . . . . . . . 11 Heaviest Build 148 | 11 36 38 50 51 43 46 58 59 56 54 54 62 96 96 92 92 92 92 97 135 112 115 115 148 Greatest Support 164 | 40 40 40 70 70 70 70 85 70 70 70 70 120 120 120 120 120 120 120 140 140 160 160 140 164 Greatest Overweight (x) 8 | . . . 1 . . . . . . . 1 1 . . . . . . . 1 . . . 8 Average Overweight (x) . | . . . . . . . . . . . . . . . . . . . . . . . . 1 Largest Inventory Capacity 25 | 8 15 15 15 15 15 15 15 15 15 15 15 15 15 15 15 15 15 15 15 20 20 20 20 25 Average Capacity 16 | 8 14 15 15 15 15 15 15 15 15 15 15 15 15 15 15 15 15 15 15 19 20 20 20 22 Most Carried 25 | 6 15 15 15 15 15 15 15 15 15 15 15 15 15 15 15 15 15 15 15 20 20 20 20 25 Average Carried 15 | 6 11 14 13 14 14 14 14 14 14 15 13 14 14 15 14 14 14 15 13 18 19 19 19 19 Final Capacity 20 | 8 15 15 15 15 15 15 15 15 15 15 15 15 15 15 15 15 15 15 15 20 20 20 20 5 Final Carried 20 | 6 15 15 15 13 15 15 14 15 15 15 13 15 15 15 15 15 15 15 15 20 20 20 20 5 Class Distribution -------------------- 58% | Mutant 20% | Skirmisher 8% | Scavenger-Mutant 7% | Commander-Mutant 3% | Assassin Dominant Class ---------------- Mutant | -10/Materials Mutant | -10/Subcaves Mutant | -8/Materials Mutant | -8/Garrison Mutant | -8/Materials Mutant | -8/Garrison Mutant | -7/Factory Mutant | -7/Lower Caves Mutant | -7/Lower Caves Mutant | -7/Data Miner Mutant | -6/Proximity Caves Commander-Mutant | -6/Factory Mutant | -6/Garrison Mutant | -6/Factory Skirmisher | -6/Lower Caves Skirmisher | -6/Lower Caves Assassin | -6/Zion Skirmisher | -5/Proximity Caves Mutant | -5/Factory Commander-Mutant | -5/Extension Commander-Mutant | -5/Cetus Scavenger-Mutant | -5/Archives Scavenger-Mutant | -5/Hub_04(d) Scavenger-Mutant | -4/Factory Resources | -11 -10 -10 -8 -8 -8 -8 -7 -7 -7 -7 -6 -6 -6 -6 -6 -6 -6 -5 -5 -5 -5 -5 -5 -4 ----------- Run | Yrd Mat Sub Mat Gar Mat Gar Fac Low Low Dat Pro Fac Gar Fac Low Low Zio Pro Fac Ext Cet Arc Hub Fac Matter Collected 10309 | 230 408 305 1004 401 383 290 341 280 125 . 210 20 650 286 503 306 10 80 396 643 194 40 573 2631 Remotely 751 | . . . . . . . . . . . . . . 261 . . . . 45 . . . . 445 Salvage Created 8913 | . 596 478 1279 484 383 331 247 393 101 . 276 . 255 105 43 299 . 28 340 346 63 40 271 2555 Parts 411 | . 42 22 84 18 19 24 9 13 5 . 7 . 18 4 2 4 . 3 17 12 1 6 12 89 Haulers Intercepted 6 | . . . 5 . . . . . . . . . . 1 . . . . . . . . . . Recyclers Shooed 6 | . . . . . 1 . . . . . . . . . . . . . . . . . 1 4 Parts Field Recycled . | . . . . . . . . . . . . . . . . . . . . . . . . . Retrieved Matter . | . . . . . . . . . . . . . . . . . . . . . . . . . Parts Self-Destructed 63 | . . 6 . . . . . 15 5 . 6 . . . 3 10 . 18 . . . . . . Prevented 2 | . . . . . . . . . . . . . . . . 2 . . . . . . . . Kills | -11 -10 -10 -8 -8 -8 -8 -7 -7 -7 -7 -6 -6 -6 -6 -6 -6 -6 -5 -5 -5 -5 -5 -5 -4 ------- Run | Yrd Mat Sub Mat Gar Mat Gar Fac Low Low Dat Pro Fac Gar Fac Low Low Zio Pro Fac Ext Cet Arc Hub Fac Combat Hostiles Destroyed 216 | . 20 8 25 14 7 11 9 11 4 . 8 . 7 1 2 5 . 3 7 7 1 . 5 61 Melee 1 | . . . . . . . . . . . . . . . . . . . . . . . . 1 Guns 71 | . 20 7 16 9 7 5 2 1 1 . 3 . . . . . . . . . . . . . Cannons 86 | . . . 1 . . . . . . . . . 5 1 1 3 . . 7 7 1 . 5 55 AOE 56 | . . . 8 5 . 6 7 10 3 . 5 . 2 . 1 2 . 3 . . . . . 4 Classes Destroyed 22 | . 2 3 8 . . . 2 . . . 1 . . . . . . . 1 . . . 2 3 Worker 9 | . . . 4 . . . . . . . . . . . . . . . . . . . 2 3 Builder 6 | . . . 3 . . . . . . . . . . . . . . . . . . . . 3 Hauler 6 | . . . 5 . . . . . . . . . . 1 . . . . . . . . . . Recycler 3 | . . . . . . . . . . . . . . . . . . . . . . . 1 2 Mechanic 4 | . . . . . . . . . . . . . . . . . . . . . . . . 4 Operator 2 | . . . 1 . . . . . . . . . 1 . . . . . . . . . . . Drone 2 | . . . . . . . . . . . 2 . . . . . . . . . . . . . Watcher 6 | . . . 3 . 1 1 . . . . . . . . . . . . . . . . . 1 Swarmer 51 | . 9 . 4 3 . 4 4 1 . . 5 . 3 . 1 1 . 3 . 1 . . . 12 Saboteur 1 | . . . . . . . . . . . . . . . . . . . . . . . . 1 Grunt 103 | . 11 . 14 10 5 6 2 7 3 . 1 . 2 1 1 3 . . 5 4 . . 2 26 Brawler 10 | . . . . . . . 1 3 1 . . . . . . 1 . . . . . . . 4 Duelist 9 | . . . 1 . . . 1 . . . . . 1 . . . . . . . . . . 6 Protector 1 | . . . . . . . 1 . . . . . . . . . . . . . . . . . Sentry 20 | . . . 5 . 2 1 . . . . . . 1 . . . . . 2 2 . . 2 5 Specialist 2 | . . . . . . . . . . . . . . . . . . . . . . . 1 1 Hunter 4 | . . . 1 1 . . . . . . . . 1 . . . . . . . . . . 1 Programmer 5 | . . . . . . . . . . . . . . . . . . . 1 . . . . 4 Heavy 1 | . . . . . . . . . . . . . . . . . . . . . . . . 1 Cetus Guard 1 | . . . . . . . . . . . . . . . . . . . . . 1 . . . Artisan 1 | . . 1 . . . . . . . . . . . . . . . . . . . . . . Cobbler 1 | . . 1 . . . . . . . . . . . . . . . . . . . . . . Subdweller 8 | . . 8 . . . . . . . . . . . . . . . . . . . . . . Savage 1 | . . . . . . . . . . . . . . . . 1 . . . . . . . . Guerrilla 1 | . . . . . . . . . . . . . . . . . . . . 1 . . . . Best Kill Streak 9 | . 6 2 9 3 3 6 3 6 4 . 3 . 2 1 1 4 . 3 2 2 1 . 4 9 Combat Bots Only 8 | . 6 2 4 3 3 6 3 6 4 . 3 . 2 1 1 4 . 3 2 2 1 . 3 8 Max Kills in Single Turn 5 | . 2 1 5 3 1 4 2 2 1 . 2 . 2 1 1 1 . 2 2 1 1 . 1 5 Gunslinging 1 | . 1 . 1 1 . . . . . . . . . . . . . . . . . . . . Exploded 4 | . . . 2 3 . 4 2 2 1 . 2 . 2 . 1 1 . 2 . . . . . 2 Melee 1 | . . . . . . . . . . . . . . . . . . . . . . . . 1 Uniques/NPCs Destroyed . | . . . . . . . . . . . . . . . . . . . . . . . . . Combat | -11 -10 -10 -8 -8 -8 -8 -7 -7 -7 -7 -6 -6 -6 -6 -6 -6 -6 -5 -5 -5 -5 -5 -5 -4 -------- Run | Yrd Mat Sub Mat Gar Mat Gar Fac Low Low Dat Pro Fac Gar Fac Low Low Zio Pro Fac Ext Cet Arc Hub Fac Hostile Shots Fired 1393 | . 64 41 96 61 25 37 22 19 4 . 18 . 61 21 6 4 . 5 24 60 15 . 64 746 Missed 410 | . 16 9 28 20 8 19 6 6 1 . 4 . 20 3 1 2 . 1 4 23 5 . 14 220 Damage Taken 18538 | . 455 679 1139 660 255 248 336 246 43 . 433 . 648 229 97 92 . 60 464 779 331 . 1164 10180 Core 1751 | . 93 80 100 28 27 50 18 . 14 . 34 . 37 5 . . . . . 63 . . 38 1164 Absorbed by Shields 233 | . . . . . . . . 29 . . . . 97 . . . . . . 70 37 . . . Reduced by Siege Mode 135 | . . . . . . . . . . . . . . . . . . . . . . . . 135 Redirected to Shielding 9 | . 9 . . . . . . . . . . . . . . . . . . . . . . . Ignored by Resistances 1017 | . . . 106 44 . . . . . . . . . . . . . . . 66 . . . 801 Regen/Repaired (Parts) 1954 | . . . 244 . . . 128 . . . . . . . . . . . . 551 . . . 1031 Core Remaining (%) 77 | 100 . 30 . . . 62 . . . . 90 . . . . . . 95 . . . . 89 . Volleys Fired 737 | . 48 41 108 48 29 23 18 13 6 . 12 . 47 7 17 23 . 4 20 30 8 3 31 201 Largest 2 | . 2 2 2 2 2 2 2 2 2 . 2 . 2 2 2 2 . 1 2 2 2 1 1 2 Hottest 160 | . 100 100 80 80 50 160 160 160 160 . 160 . 160 122 122 122 . 61 122 122 122 30 83 150 Shots Fired 1074 | . 85 63 195 74 58 38 22 16 7 . 19 . 72 13 18 33 . 4 39 60 14 3 31 210 Gun 510 | . 74 55 172 62 58 34 8 6 2 . 14 . 10 . . . . . . . . . . 15 Cannon 453 | . . . 14 8 . . 2 . . . . . 54 13 5 20 . 2 39 60 13 . 31 192 Launcher 54 | . . . 9 4 . 4 7 10 5 . 5 . 1 . 4 2 . 2 . . 1 . . . Special 57 | . 11 8 . . . . 5 . . . . . 7 . 9 11 . . . . . 3 . 3 Kinetic 822 | . 60 12 172 62 58 22 . . . . . . 62 13 5 20 . 2 39 60 13 . 31 191 Thermal 129 | . 11 8 14 8 . 12 15 6 2 . 14 . 9 . 9 11 . . . . . 3 . 7 Explosive 53 | . . . 9 4 . 4 7 10 5 . 5 . 1 . 4 2 . 2 . . . . . . Electromagnetic 70 | . 14 43 . . . . . . . . . . . . . . . . . . 1 . . 12 Robot Hit Streak 18 | . 13 13 12 14 15 17 10 11 6 . 13 . 10 5 4 7 . . 5 8 3 3 4 18 Robot Miss Streak 5 | . 3 2 3 1 2 1 2 4 1 . 3 . 4 2 2 3 . . 3 3 1 . 4 5 Penetration Max 1 | . . . . . . . . . . . . . . . . . . . 1 . . . . . Secondary Targets 11 | . 2 2 2 3 . . 1 . . . . . . . . . . . . . . . . 1 Max Gunslinging Chain 1 | . 1 1 1 1 . . 1 . . . . . . . . . . . . . . . . 1 Shots Hit Robots 742 | . 51 53 117 48 39 24 12 11 2 1 17 . 42 7 6 22 1 . 22 59 8 4 16 180 Core Hits 536 | . 30 26 61 25 20 22 25 31 9 . 25 . 18 4 12 19 . 4 13 16 3 2 6 165 Critical Kills . | . . . . . . . . . . . . . . . . . . . . . . . . . Critical Parts Destroyed 3 | . . . 2 . 1 . . . . . . . . . . . . . . . . . . . Critical Strikes 42 | . . . 2 . 1 . . . . . . . 9 1 . 5 . . 6 7 1 . 3 7 Destroy 3 | . . . 2 . 1 . . . . . . . . . . . . . . . . . . . Blast 38 | . . . . . . . . . . . . . 9 1 . 4 . . 6 7 1 . 3 7 Sever 1 | . . . . . . . . . . . . . . . . 1 . . . . . . . . Melee Attacks 42 | . . . . 4 . . 2 . . 1 2 3 2 . . 4 1 . . 22 . 1 . . Impact 7 | . . . . . . . . . . . . 3 . . . 4 . . . . . . . . Slashing . | . . . . . . . . . . . . . . . . . . . . . . . . . Piercing 1 | . . . . . . . . . . . . . . . . . . . . . . 1 . . Sneak Attacks 34 | . . . . 4 . . 2 . . 1 2 . 2 . . . 1 . . 22 . . . . Combat Hostiles . | . . . . . . . . . . . . . . . . . . . . . . . . . Follow-up Attacks . | . . . . . . . . . . . . . . . . . . . . . . . . . Damage Inflicted 32350 | . 571 742 3367 1286 680 935 1131 1701 513 . 1174 . 1446 338 307 955 . 265 955 1611 320 92 1353 12608 Guns 6032 | . 559 657 1993 671 659 463 144 126 13 . 275 . 209 . . . . . . . . . . 263 Cannons 16706 | . . . 118 . . . . . . . . . 1066 303 33 575 . . 955 1538 316 . 1322 10480 Explosions 9052 | . . 58 1247 615 . 472 955 1575 500 . 899 . 140 35 248 258 . 265 . . 4 . . 1781 Melee 70 | . . . . . . . . . . . . . . . . . . . . . . 70 . . Ramming 225 | . 12 . 9 . 21 . . . . . . . . . . . . . . 73 . . 31 79 Kinetic 20830 | . 423 168 1993 671 659 228 . . . . . . 1221 303 33 575 . . 955 1538 316 . 1322 10425 Thermal 3117 | . . 85 595 . . 235 176 126 13 . 275 . 85 . 26 122 . . . . . 22 . 1357 Explosive 7151 | . . . 770 615 . 472 882 1575 500 . 899 . 140 35 248 258 . 265 . . . . . 492 Electromagnetic 957 | . 136 489 . . . . 73 . . . . . . . . . . . . . 4 . . 255 Impact . | . . . . . . . . . . . . . . . . . . . . . . . . . Slashing . | . . . . . . . . . . . . . . . . . . . . . . . . . Piercing 70 | . . . . . . . . . . . . . . . . . . . . . . 70 . . Highest Corruption 14 | . . . 1 1 1 1 . . . . . . . . . . . . 1 2 2 2 . 14 Average Corruption 1 | . . . 1 1 1 1 . . . . . . . . . . . . 1 1 2 1 . 4 Corruption Purged 2 | . . . . . . . . . . . . . . . . . . . . . . 2 . . Corruption Blocked . | . . . . . . . . . . . . . . . . . . . . . . . . . Effects 79 | . . . 9 10 3 3 . . . . . . . . . . . . 1 16 4 . . 33 Message Errors 19 | . . . 1 2 1 2 . . . . . . . . . . . . . 6 . . . 7 Matter Fused 16 | . . . 3 1 2 . . . . . . . . . . . . . . 4 1 . . 5 Heat Flow Errors 7 | . . . . 3 . . . . . . . . . . . . . . . 2 1 . . 1 Energy Discharges 16 | . . . 1 2 . 1 . . . . . . . . . . . . 1 2 1 . . 8 Parts Rejected 3 | . . . . . . . . . . . . . . . . . . . . . 1 . . 2 Parts Fused 1 | . . . 1 . . . . . . . . . . . . . . . . . . . . . Data Loss (minor) 7 | . . . 1 . . . . . . . . . . . . . . . . 1 . . . 5 Data Loss (major) 2 | . . . . 1 . . . . . . . . . . . . . . . 1 . . . . Misfires 4 | . . . 2 . . . . . . . . . . . . . . . . . . . . 2 Alerts 1 | . . . . 1 . . . . . . . . . . . . . . . . . . . . Misdirections 1 | . . . . . . . . . . . . . . . . . . . . . . . . 1 Weapon Failures 2 | . . . . . . . . . . . . . . . . . . . . . . . . 2 Overload Shots . | . . . . . . . . . . . . . . . . . . . . . . . . . Overflow Damage 954 | . . . 242 4 . . . . 8 . . . 35 . . 36 . . . . 3 . 273 353 Projectiles 596 | . . . . . . . . . . . . . 14 . . 36 . . . . 3 . 273 270 Explosions 358 | . . . 242 4 . . . . 8 . . . 21 . . . . . . . . . . 83 Melee . | . . . . . . . . . . . . . . . . . . . . . . . . . Knockbacks 133 | . . . . . . . . . . . . . 9 . . 2 . . 5 5 . . 6 106 Impact 1 | . . . . . . . . . . . . . . . . . . . . 1 . . . . Kinetic 123 | . . . . . . . . . . . . . 9 . . 2 . . 5 4 . . 6 97 Secondary 9 | . . . . . . . . . . . . . . . . . . . . . . . . 9 Self-Inflicted Damage 410 | . . . . 60 . 25 . . . . 111 . . 55 . . . . . . . . . 159 Shots 11 | . . . . 2 . 1 . . . . 3 . . 2 . . . . . . . . . 3 Rammed 17 | . 4 . . . . . . . . . . . . . . . . . . 4 . . 2 7 Targets Rammed 26 | . 4 . 3 . 3 . . . . . . . . . . . . . . 4 . . 3 9 Kicked 7 | . . . 3 . 3 . . . . . . . . . . . . . . . . . . 1 Crushed 2 | . . . . . . . . . . . . . . . . . . . . . . . 1 1 Highest Temperature 425 | . 155 4 345 245 . 51 60 42 30 . 21 . 45 180 9 155 . . 208 215 216 . 27 425 Average Temperature 78 | . 48 2 52 51 . 19 21 24 23 . 11 . 18 55 6 49 . . 69 55 119 . 9 124 Received Heat Transfer 3768 | . 126 63 513 252 99 81 36 54 27 . 72 . 103 63 45 21 . . 117 251 22 . 318 1505 Effects 9 | . . . . . . . . . . . . . . . . . . . . . . . . 9 Shutdowns 1 | . . . . . . . . . . . . . . . . . . . . . . . . 1 Energy Bleed 2 | . . . . . . . . . . . . . . . . . . . . . . . . 2 Interference 6 | . . . . . . . . . . . . . . . . . . . . . . . . 6 Siege Activations 4 | . . . . . . . . . . . . . . . . . . . . . . . . 4 Total Turns 56 | . . . . . . . . . . . . . . . . . . . . . . . . 56 Longest Duration 25 | . . . . . . . . . . . . . . . . . . . . . . . . 25 Robots Corrupted 2 | . . 1 . . . . . . . . . . . . . . . . . . . . . 1 Combat Hostiles 2 | . . 1 . . . . . . . . . . . . . . . . . . . . . 1 Parts Fried 6 | . . 2 . . . . . . . . . . . . . . . . . . 1 . . 3 Impact Corruptions . | . . . . . . . . . . . . . . . . . . . . . . . . . Robots Melted 1 | . . . . . . . . . . . . . . . . 1 . . . . . . . . Combat Hostiles . | . . . . . . . . . . . . . . . . . . . . . . . . . Parts Melted 7 | . . . . 3 . . 2 1 . . . . . . . 1 . . . . . . . . Heat Transferred 4452 | . . 150 448 . . 500 418 275 25 . 625 . 250 . 143 407 . . . . . 75 . 1136 Parts Sabotaged 1 | . . . . . . . . . . . . . . . . . . . . . . . . 1 Parts Stolen . | . . . . . . . . . . . . . . . . . . . . . . . . . Parts Stripped . | . . . . . . . . . . . . . . . . . . . . . . . . . Power Chain Reactions 1 | . . 1 . . . . . . . . . . . . . . . . . . . . . . Missiles Intercepted . | . . . . . . . . . . . . . . . . . . . . . . . . . Alert | -11 -10 -10 -8 -8 -8 -8 -7 -7 -7 -7 -6 -6 -6 -6 -6 -6 -6 -5 -5 -5 -5 -5 -5 -4 ------- Run | Yrd Mat Sub Mat Gar Mat Gar Fac Low Low Dat Pro Fac Gar Fac Low Low Zio Pro Fac Ext Cet Arc Hub Fac Peak Influence 1608 | . 381 . 275 922 645 969 796 . . . . 74 1462 1176 . . . . 361 463 729 738 793 1608 Initial 767 | . . . . 117 449 403 508 . . . . 44 61 767 . . . . 150 107 259 291 258 388 Average 450 | . 175 . 153 553 513 691 601 . . . . 46 766 902 . . . . 225 133 537 368 464 1050 Maximum Alert Level 5 | . 1 . 1 3 2 3 3 . . . . . 4 4 . . . . 1 2 3 3 3 5 Low Security (%) 40 | 100 79 . 86 10 . . . . . . . 100 24 . . . . . 39 74 . . . . Level 1 14 | . 20 . 13 12 6 . . . . . . . 3 . . . . . 60 22 37 82 37 1 Level 2 21 | . . . . 46 93 54 88 . . . . . 12 . . . . . . 3 31 4 53 22 Level 3 14 | . . . . 30 . 45 11 . . . . . 30 77 . . . . . . 31 13 9 29 Level 4 8 | . . . . . . . . . . . . . 28 22 . . . . . . . . . 45 Level 5 . | . . . . . . . . . . . . . . . . . . . . . . . . . High Security . | . . . . . . . . . . . . . . . . . . . . . . . . . Max Security . | . . . . . . . . . . . . . . . . . . . . . . . . . Squads Dispatched 47 | . 4 . 4 . 4 . 2 . . . . 1 . 4 . . . . 5 . . . 5 18 Investigation 12 | . 2 . 1 . 1 . . . . . . 1 . 2 . . . . 2 . . . 2 1 Extermination 5 | . . . . . . . 1 . . . . . . . . . . . 2 . . . . 2 Reinforcement 16 | . 2 . 3 . 2 . . . . . . . . 1 . . . . 1 . . . 2 5 Assault 10 | . . . . . . . 1 . . . . . . 1 . . . . . . . . 1 7 Garrison 4 | . . . . . 1 . . . . . . . . . . . . . . . . . . 3 Intercept . | . . . . . . . . . . . . . . . . . . . . . . . . . Searches Triggered . | . . . . . . . . . . . . . . . . . . . . . . . . . Construction Impeded 2 | . . . 1 . . . . . . . . . . . . . . . . . . . . 1 Haulers Reinforced 1 | . . . . . . . . . . . . . . 1 . . . . . . . . . . Active Scanning Responses . | . . . . . . . . . . . . . . . . . . . . . . . . . Cargo Convoy Interrupts . | . . . . . . . . . . . . . . . . . . . . . . . . . Stealth | -11 -10 -10 -8 -8 -8 -8 -7 -7 -7 -7 -6 -6 -6 -6 -6 -6 -6 -5 -5 -5 -5 -5 -5 -4 --------- Run | Yrd Mat Sub Mat Gar Mat Gar Fac Low Low Dat Pro Fac Gar Fac Low Low Zio Pro Fac Ext Cet Arc Hub Fac Distress Signals 14 | . 1 . 3 . 2 . . . . . . . 1 . . . . 1 . . 2 . 1 3 Communications Jammed 55 | . . . . . . . 3 . . . . 2 11 . . . . . 1 2 . . 32 4 Distress Signals 50 | . . . . . . . . . . . . . 11 . . . . . 1 2 . . 32 4 Times Spotted 474 | . 32 10 52 21 31 16 28 18 3 . 8 . 32 6 7 10 . 4 13 27 13 . 20 123 Peak Tracking Total 17 | . 6 2 7 4 5 6 5 9 4 . 5 . 4 3 4 8 . 4 2 5 5 . 6 17 Tactical Retreats 14 | . 2 . 2 . 1 . . . . . . . . 1 . . . . . 2 . . 2 4 Traps | -11 -10 -10 -8 -8 -8 -8 -7 -7 -7 -7 -6 -6 -6 -6 -6 -6 -6 -5 -5 -5 -5 -5 -5 -4 ------- Run | Yrd Mat Sub Mat Gar Mat Gar Fac Low Low Dat Pro Fac Gar Fac Low Low Zio Pro Fac Ext Cet Arc Hub Fac Traps Triggered 5 | . . . . . . . . . . . . . . 1 . . . . . 1 . . . 3 Indirectly . | . . . . . . . . . . . . . . . . . . . . . . . . . Trap Hack Attempts 38 | . 4 . 34 . . . . . . . . . . . . . . . . . . . . . Triggered . | . . . . . . . . . . . . . . . . . . . . . . . . . Disarmed 1 | . . . 1 . . . . . . . . . . . . . . . . . . . . . Reprogrammed 6 | . 2 . 4 . . . . . . . . . . . . . . . . . . . . . Reused 4 | . 2 . 2 . . . . . . . . . . . . . . . . . . . . . Traps Extracted . | . . . . . . . . . . . . . . . . . . . . . . . . . Installed 1 | . . . 1 . . . . . . . . . . . . . . . . . . . . . Triggered 5 | . 2 . 2 . . . . . . . . . . . . . . 1 . . . . . . Most Traps Carried 1 | . . 1 1 . . . . . . . . . . . . . . . . . . . . . Machines | -11 -10 -10 -8 -8 -8 -8 -7 -7 -7 -7 -6 -6 -6 -6 -6 -6 -6 -5 -5 -5 -5 -5 -5 -4 ---------- Run | Yrd Mat Sub Mat Gar Mat Gar Fac Low Low Dat Pro Fac Gar Fac Low Low Zio Pro Fac Ext Cet Arc Hub Fac Machines Disabled 45 | . . 1 5 4 . 3 2 2 . . 1 . 8 2 . 1 . . 2 . . 1 4 9 Max in Single Turn 4 | . . 1 1 1 . 1 1 . . . 1 . 2 2 . 1 . . 1 . . . . 4 Garrison Access 4 | . . . . . . . . . . . . . . . . . . . . . . . 1 3 Garrison Relay 8 | . . . . 3 . 2 . . . . . . 3 . . . . . . . . . . . Phase Generator 1 | . . . . . . . . . . . . . 1 . . . . . . . . . . . Network Hub 2 | . . . . . . . . . . . . . . . . . . . . . . . 2 . Machines Repaired . | . . . . . . . . . . . . . . . . . . . . . . . . . Machines Dismantled 3 | . . . . . . 2 . . . . . . . . . . . . . . 1 . . . Machines Sabotaged 1 | . . . . . . . . . . . . . . . . . . . . . . . 1 . Overloaded Fab Kills . | . . . . . . . . . . . . . . . . . . . . . . . . . Hacking | -11 -10 -10 -8 -8 -8 -8 -7 -7 -7 -7 -6 -6 -6 -6 -6 -6 -6 -5 -5 -5 -5 -5 -5 -4 --------- Run | Yrd Mat Sub Mat Gar Mat Gar Fac Low Low Dat Pro Fac Gar Fac Low Low Zio Pro Fac Ext Cet Arc Hub Fac Machines Accessed 73 | . 9 1 16 1 4 1 3 . 1 3 . 3 1 2 1 1 . . 5 7 1 . 5 8 Terminals 45 | . 6 . 11 1 3 1 2 . 1 . . . 1 1 . . . . 4 6 1 . 5 2 Fabricators 2 | . . . . . . . . . . . . . . . . . . . 1 . . . . 1 Repair Stations 8 | . 1 . 2 . . . 1 . . . . 1 . . . . . . . 1 . . . 2 Recycling Units 5 | . 2 . 2 . . . . . . . . . . . . . . . . . . . . 1 Scanalyzers 1 | . . . . . . . . . . . . . . 1 . . . . . . . . . . Garrison Access 6 | . . . 1 . 1 . . . . . . 2 . . . . . . . . . . . 2 Total Hacks 234 | . 30 1 55 2 18 2 8 . 1 24 . 9 2 7 1 1 . . 12 22 2 . 13 24 Successful 109 | . 12 1 24 . 6 1 5 . 1 24 . 1 . 4 1 1 . . 4 9 . . 5 10 Failed 124 | . 17 . 31 2 12 1 3 . . . . 8 2 3 . . . . 8 13 2 . 8 14 Catastrophic 19 | . 2 . 4 . 3 . . . . . . 1 . 1 . . . . . 2 1 . 3 2 Database Lockouts 1 | . 1 . . . . . . . . . . . . . . . . . . . . . . . Manual 104 | . 13 . 36 . 13 . 2 . 5 . . 2 . 1 . . . . 7 8 1 . 11 5 Terminals 141 | . 21 . 37 2 14 2 4 . 1 . . . 2 1 . . . . 9 20 2 . 13 13 Fabricators 4 | . . . . . . . . . . . . . . . . . . . 3 . . . . 1 Repair Stations 22 | . 2 . 7 . . . 4 . . . . 3 . . . . . . . 2 . . . 4 Recycling Units 16 | . 7 . 7 . . . . . . . . . . . . . . . . . . . . 2 Scanalyzers 6 | . . . . . . . . . . . . . . 6 . . . . . . . . . . Garrison Access 18 | . . . 4 . 4 . . . . . . 6 . . . . . . . . . . . 4 Terminal Hacks 59 | . 8 1 8 . 4 1 1 . 1 24 . . . . 1 1 . . 2 3 . . 2 2 Record 7 | . . . . . . . . . 1 6 . . . . . . . . . . . . . . Part Schematic 9 | . . . . . . . . . . 9 . . . . . . . . . . . . . . Robot Schematic 6 | . . . . . . . . . . 6 . . . . . . . . . . . . . . Robot Analysis 4 | . 1 . 2 . . . . . . . . . . . . . . . . . . . 1 . Prototype ID Bank 6 | . 1 . . . 1 . . . . 3 . . . . . . . . . 1 . . . . Open Door 2 | . . . . . . . . . . . . . . . 1 1 . . . . . . . . Branch Access Points 4 | . . . . . 1 . 1 . . . . . . . . . . . 1 . . . . 1 Unreport Threat 7 | . . . 2 . 2 . . . . . . . . . . . . . 1 2 . . . . Locate Traps 4 | . 3 . 1 . . . . . . . . . . . . . . . . . . . . . Recall Reinforcements 1 | . . . 1 . . . . . . . . . . . . . . . . . . . . . Registered Components 2 | . 1 . 1 . . . . . . . . . . . . . . . . . . . . . Zone Layout 5 | . 2 . 1 . . . . . . . . . . . . . . . . . . . 1 1 Security Stations 1 | . . . . . . 1 . . . . . . . . . . . . . . . . . . Derelict Proto ID Bank 1 | . . 1 . . . . . . . . . . . . . . . . . . . . . . Fabricator Hacks 1 | . . . . . . . . . . . . . . . . . . . 1 . . . . . Network Status 1 | . . . . . . . . . . . . . . . . . . . 1 . . . . . Repair Station Hacks 16 | . 1 . 6 . . . 4 . . . . . . . . . . . . 2 . . . 3 Scan Component 9 | . 1 . 3 . . . 2 . . . . . . . . . . . . 1 . . . 2 Repair 7 | . . . 3 . . . 2 . . . . . . . . . . . . 1 . . . 1 Recycling Unit Hacks 3 | . 1 . 1 . . . . . . . . . . . . . . . . . . . . 1 Process 1 | . . . 1 . . . . . . . . . . . . . . . . . . . . . Retrieve Components 2 | . 1 . . . . . . . . . . . . . . . . . . . . . . 1 Scanalyzer 4 | . . . . . . . . . . . . . . 4 . . . . . . . . . . Insert Component 1 | . . . . . . . . . . . . . . 1 . . . . . . . . . . Analyze 3 | . . . . . . . . . . . . . . 3 . . . . . . . . . . Garrison Access Hacks 5 | . . . 1 . 1 . . . . . . 1 . . . . . . . . . . . 2 Unlock Access 3 | . . . 1 . 1 . . . . . . 1 . . . . . . . . . . . . Seal Access 2 | . . . . . . . . . . . . . . . . . . . . . . . . 2 Unauthorized Hacks 21 | . 2 . 8 . 1 . . . . . . . . . . . . . 1 4 . . 3 2 Terminals 15 | . . . 5 . 1 . . . . . . . . . . . . . 1 4 . . 3 1 Track 2 | . . . 1 . . . . . . . . . . . . . . . . 1 . . . . Assimilate 1 | . . . 1 . . . . . . . . . . . . . . . . . . . . . Botnet 8 | . . . 2 . 1 . . . . . . . . . . . . . 1 2 . . 1 1 Disrupt 1 | . . . . . . . . . . . . . . . . . . . . 1 . . . . Operators 1 | . . . 1 . . . . . . . . . . . . . . . . . . . . . Sabotage 2 | . . . . . . . . . . . . . . . . . . . . . . . 2 . Fabricators . | . . . . . . . . . . . . . . . . . . . . . . . . . Repair Stations . | . . . . . . . . . . . . . . . . . . . . . . . . . Recycling Units 6 | . 2 . 3 . . . . . . . . . . . . . . . . . . . . 1 Reject 2 | . . . 2 . . . . . . . . . . . . . . . . . . . . . Mask 2 | . . . 1 . . . . . . . . . . . . . . . . . . . . 1 Tunnel 2 | . 2 . . . . . . . . . . . . . . . . . . . . . . . Scanalyzers . | . . . . . . . . . . . . . . . . . . . . . . . . . Garrison Access . | . . . . . . . . . . . . . . . . . . . . . . . . . Data Cores Recovered 1 | . . . 1 . . . . . . . . . . . . . . . . . . . . . Used 1 | . . . 1 . . . . . . . . . . . . . . . . . . . . . Hacking Detections 56 | . 8 . 13 1 4 1 2 . 1 . . 3 1 1 . . . . 4 7 1 . 4 5 Full Trace Events 7 | . . . 1 . 1 . . . . . . 1 1 1 . . . . 2 . . . . . Feedback Events . | . . . . . . . . . . . . . . . . . . . . . . . . . Feedback Blocked . | . . . . . . . . . . . . . . . . . . . . . . . . . Robot Schematics Acquired 6 | . . . . . . . . . . 6 . . . . . . . . . . . . . . Robots Built . | . . . . . . . . . . . . . . . . . . . . . . . . . Authchips . | . . . . . . . . . . . . . . . . . . . . . . . . . Time . | . . . . . . . . . . . . . . . . . . . . . . . . . Total Robot Build Rating . | . . . . . . . . . . . . . . . . . . . . . . . . . Part Schematics Acquired 9 | . . . . . . . . . . 9 . . . . . . . . . . . . . . Parts Built . | . . . . . . . . . . . . . . . . . . . . . . . . . Authchips . | . . . . . . . . . . . . . . . . . . . . . . . . . Time . | . . . . . . . . . . . . . . . . . . . . . . . . . Total Part Build Rating . | . . . . . . . . . . . . . . . . . . . . . . . . . Parts Repaired 7 | . . . 3 . . . 2 . . . . . . . . . . . . 1 . . . 1 Time 348 | . . . 114 . . . 82 . . . . . . . . . . . . 44 . . . 108 Parts Recycled . | . . . . . . . . . . . . . . . . . . . . . . . . . Recycled Matter . | . . . . . . . . . . . . . . . . . . . . . . . . . Retrieved Matter . | . . . . . . . . . . . . . . . . . . . . . . . . . Retrieved Components 20 | . 10 . . . . . . . . . . . . . . . . . . . . . . 10 Parts Scanalyzed 1 | . . . . . . . . . . . . . . 1 . . . . . . . . . . Part Schematics Acquired . | . . . . . . . . . . . . . . . . . . . . . . . . . Parts Damaged . | . . . . . . . . . . . . . . . . . . . . . . . . . Bothacking | -11 -10 -10 -8 -8 -8 -8 -7 -7 -7 -7 -6 -6 -6 -6 -6 -6 -6 -5 -5 -5 -5 -5 -5 -4 ------------ Run | Yrd Mat Sub Mat Gar Mat Gar Fac Low Low Dat Pro Fac Gar Fac Low Low Zio Pro Fac Ext Cet Arc Hub Fac Used RIF Installer . | . . . . . . . . . . . . . . . . . . . . . . . . . Robots Hacked 7 | . . . . . . . 2 . . 1 . . 2 . . . 1 . . 1 . . . . Non-combat 1 | . . . . . . . . . . . . . . . . . . . . 1 . . . . Combat 6 | . . . . . . . 2 . . 1 . . 2 . . . 1 . . . . . . . Robot Hacks Applied 9 | . . . . . . . 2 . . 1 . . 2 . . . 1 . . 3 . . . . parse_system 6 | . . . . . . . 2 . . 1 . . 2 . . . 1 . . . . . . . no_distress 3 | . . . . . . . . . . . . . . . . . . . . 3 . . . . Relay Couplers Released 39 | . . . . 15 . 6 . . . . . . 13 . . . . . . . . . 3 2 Machine Destruction 39 | . . . . 15 . 6 . . . . . . 13 . . . . . . . . . 3 2 Fabnet Peak Effective % . | . . . . . . . . . . . . . . . . . . . . . . . . . Robots Rewired 23 | . . . . 3 . . . 2 . . 2 . . . . 2 . . . 14 . . . . Allies Hacked 1 | . . . . . . . . . . . . . . . . . . . 1 . . . . . Hacks Repelled . | . . . . . . . . . . . . . . . . . . . . . . . . . Allies | -11 -10 -10 -8 -8 -8 -8 -7 -7 -7 -7 -6 -6 -6 -6 -6 -6 -6 -5 -5 -5 -5 -5 -5 -4 -------- Run | Yrd Mat Sub Mat Gar Mat Gar Fac Low Low Dat Pro Fac Gar Fac Low Low Zio Pro Fac Ext Cet Arc Hub Fac Total Allies 51 | . . . 1 3 . 1 . 2 . . 3 . 3 . . 2 9 . . 22 5 . . . Largest Group 16 | . . . 1 4 4 2 2 3 3 3 6 6 6 5 5 4 13 13 9 16 10 6 5 . Highest-Rated Group 748 | . . . 82 126 126 117 117 128 128 128 273 273 370 370 370 268 433 433 341 625 748 618 459 . Highest-Rated Ally 159 | . . . 82 82 78 78 78 78 78 78 96 96 96 95 95 84 84 84 84 159 159 159 96 . Warlord Squad Rendezvous 3 | . . . . . . . . . . . . . . . . . . . . . . . . 3 Dakka 1 | . . . . . . . . . . . . . . . . . . . . . . . . 1 Infantry 1 | . . . . . . . . . . . . . . . . . . . . . . . . 1 Ghost 1 | . . . . . . . . . . . . . . . . . . . . . . . . 1 Total Orders 37 | . . . . 12 5 4 . 4 4 . 4 . . . . . . 2 . . . 2 . . STAY 19 | . . . . 6 3 2 . 2 2 . 2 . . . . . . 1 . . . 1 . . FOLLOW 18 | . . . . 6 2 2 . 2 2 . 2 . . . . . . 1 . . . 1 . . Ally Attacks 627 | . . . 1 14 64 10 39 10 . . 10 8 66 23 15 18 . 29 33 112 94 22 59 . Total Damage 19336 | . . . 23 822 1283 364 914 421 . . 374 201 2300 674 738 835 . 418 1064 2558 2886 916 2545 . Kills 167 | . . . 1 7 15 5 9 7 . . 4 1 26 9 5 8 . 4 6 19 17 10 14 . Allies Corrupted 3 | . . . . . . . . . . . . . . . . . . 1 . 2 . . . . Allies Melted 2 | . . . . . . . . . . . . . . . . 1 . 1 . . . . . . Intel | -11 -10 -10 -8 -8 -8 -8 -7 -7 -7 -7 -6 -6 -6 -6 -6 -6 -6 -5 -5 -5 -5 -5 -5 -4 ------- Run | Yrd Mat Sub Mat Gar Mat Gar Fac Low Low Dat Pro Fac Gar Fac Low Low Zio Pro Fac Ext Cet Arc Hub Fac Robot Analysis Total 4 | . 1 . 2 . . . . . . . . . . . . . . . . . . . 1 . Derelict Logs Recovered 13 | . . 1 . . . . . 3 2 . 2 . . . 1 2 1 1 . . . . . . Drone Launches . | . . . . . . . . . . . . . . . . . . . . . . . . . Drone Recoveries . | . . . . . . . . . . . . . . . . . . . . . . . . . Exploration | -11 -10 -10 -8 -8 -8 -8 -7 -7 -7 -7 -6 -6 -6 -6 -6 -6 -6 -5 -5 -5 -5 -5 -5 -4 ------------- Run | Yrd Mat Sub Mat Gar Mat Gar Fac Low Low Dat Pro Fac Gar Fac Low Low Zio Pro Fac Ext Cet Arc Hub Fac Turns Passed 28140 | 10 1980 2221 3522 1215 755 691 868 1554 1000 124 654 234 1419 415 1702 1751 1508 1059 772 1459 322 156 753 1996 Spaces Moved 15582 | 4 647 1186 2079 620 467 432 563 1162 750 93 417 162 679 230 1026 1025 933 625 371 713 149 55 393 801 Core 21 | . . . . . . . . . . . . . . . . . . . . . . . . 21 Treads 8599 | 4 647 1186 27 . . . . . . . . 8 679 230 1026 1025 933 625 371 713 149 55 393 528 Legs 6710 | . . . 2052 620 467 432 563 1162 750 93 417 154 . . . . . . . . . . . . Wheels 252 | . . . . . . . . . . . . . . . . . . . . . . . . 252 Hover . | . . . . . . . . . . . . . . . . . . . . . . . . . Flight . | . . . . . . . . . . . . . . . . . . . . . . . . . Fastest Speed 50 | 160 160 160 125 125 125 125 123 125 125 125 120 120 160 160 160 160 160 160 162 162 162 160 160 50 Average Speed 145 | 160 160 160 125 125 125 125 124 125 125 125 123 122 160 160 160 160 160 160 162 170 162 160 160 167 Slowest Speed 480 | 160 160 160 240 125 125 125 125 125 125 125 190 190 160 160 160 160 160 160 162 242 162 162 163 480 Overloaded Moves . | . . . . . . . . . . . . . . . . . . . . . . . . . Propulsion Burnouts . | . . . . . . . . . . . . . . . . . . . . . . . . . Robots Hopped . | . . . . . . . . . . . . . . . . . . . . . . . . . Cave-ins Triggered 1 | . . . 1 . . . . . . . . . . . . . . . . . . . . . Exploration Rate (%) 57 | 2 96 39 87 50 47 43 15 94 87 74 50 5 64 7 93 98 87 64 11 84 82 76 42 31 Regions Visited 24 Branch Regions 13 Pre-discovered Areas 8 | . 2 . . . . . . 3 . 1 1 . . . . 1 . . . . . . . . Known Exits Taken 15 | . . . 1 . 1 . 1 1 . . . 1 . 1 1 1 1 1 1 1 1 1 1 . Unknown Exits Taken 6 | 1 1 1 . . . . . . 1 1 1 . . . . . . . . . . . . . Scrap Searched 29 | . . 4 . . . . . 2 3 . 1 . . . 5 7 5 2 . . . . . . Spaces Dug 153 | . 6 . 6 10 . 4 4 . . . 27 2 13 37 8 4 . 3 1 . . . 7 21 Terrain Destroyed 622 | . 6 4 48 24 . 16 30 53 34 . 48 2 92 42 9 23 . 5 7 21 4 . 16 138 Melee 6 | . . . . . . . . . . . . 2 . . . 4 . . . . . . . . Projectile 164 | . 6 . 12 . . . 1 . . . . . 9 6 3 6 . 3 7 21 4 . 16 70 AOE 452 | . . 4 36 24 . 16 29 53 34 . 48 . 83 36 6 13 . 2 . . . . . 68 Terrain Rammed . | . . . . . . . . . . . . . . . . . . . . . . . . . Walls Destroyed . | . . . . . . . . . . . . . . . . . . . . . . . . . Machines Disabled . | . . . . . . . . . . . . . . . . . . . . . . . . . Actions | -11 -10 -10 -8 -8 -8 -8 -7 -7 -7 -7 -6 -6 -6 -6 -6 -6 -6 -5 -5 -5 -5 -5 -5 -4 --------- Run | Yrd Mat Sub Mat Gar Mat Gar Fac Low Low Dat Pro Fac Gar Fac Low Low Zio Pro Fac Ext Cet Arc Hub Fac Total 19885 | 6 1487 1438 2829 993 598 518 700 1241 803 99 526 191 937 260 1069 1087 949 680 509 894 200 120 468 1283 Wait 2732 | . 751 171 484 298 87 29 83 44 39 4 81 5 168 17 7 12 6 48 101 66 17 50 16 148 Move 15558 | 3 646 1185 2077 619 466 431 562 1161 749 92 416 162 678 229 1025 1024 932 624 370 712 148 54 392 801 Hop . | . . . . . . . . . . . . . . . . . . . . . . . . . Pick Up 142 | . 13 7 39 2 4 1 6 2 1 . 1 5 6 . 7 1 4 . 2 10 3 2 6 20 Fast Attach 87 | . 3 4 13 1 1 2 3 . . . 2 5 6 . . 3 . . 1 3 3 2 3 32 Attach 64 | . 1 5 7 2 . . 1 . . . 3 1 1 . . . . . 2 3 2 2 1 33 Detach 31 | . 2 2 4 . . . 2 . . . . . 1 . . 1 . . 1 1 1 2 . 14 Swap 217 | 3 9 13 18 16 3 14 17 12 5 2 9 4 13 6 7 11 2 3 10 13 5 1 4 17 Drop 148 | . 6 10 40 3 5 5 5 1 2 . . 6 15 . 6 3 4 1 1 7 5 3 12 8 Fire 737 | . 48 41 108 48 29 23 18 13 6 . 12 . 47 7 17 23 . 4 20 30 8 3 31 201 Melee 42 | . . . . 4 . . 2 . . 1 2 3 2 . . 4 1 . . 22 . 1 . . Ram . | . . . . . . . . . . . . . . . . . . . . . . . . . Kick 7 | . . . 3 . 3 . . . . . . . . . . . . . . . . . . 1 Crush 19 | . 4 . . . . . . . . . . . . . . . . . . 4 . . 3 8 Escape Stasis 1 | . . . 1 . . . . . . . . . . . . . . . . . . . . . Rewire 36 | . . . . . . . . 8 . . . . . . . 5 . . . 23 . . . . Trap 39 | . 4 . 35 . . . . . . . . . . . . . . . . . . . . . Miscellaneous 25 | . . . . . . 13 1 . 1 . . . . 1 . . . . 1 . 8 . . . Route ------- -11/Scrapyard -10/Materials (discovered 5 exits: [*Mat x3] / [*Min] / *Sub) -10/Subcaves -8/Materials (discovered 3 exits: *Fac x2 / Gar) -8/Garrison (discovered 3 exits: *Mat x3) -8/Materials -8/Garrison -7/Factory (discovered 4 exits: Sto x2 / *Low x2) -7/Lower Caves -7/Lower Caves (discovered 2 exits: *Fac / *Dat) -7/Data Miner -6/Proximity Caves -6/Factory -6/Garrison (discovered 3 exits: *Fac x3) -6/Factory -6/Lower Caves -6/Lower Caves (discovered 2 exits: *Fac / *Zio) -6/Zion -5/Proximity Caves -5/Factory (discovered 5 exits: *Fac / *Upp x2 / *Ext x2) -5/Extension (discovered 2 exits: *Fac / *Cet) -5/Cetus (discovered 2 exits: *Fac / *Arc) -5/Archives (discovered 2 exits: *Hub x2) -5/Hub_04(d) (discovered 2 exits: *Fac x2) -4/Factory (discovered 4 exits: *Res x2 / Upp x2) History --------- Turn | Location | Event 6 | -11/Scrapyard | Discovered new exit (range 1) 11 | -11/Scrapyard | Entered Materials 174 | -10/Materials | Central database locked down 317 | -10/Materials | Build established: Mutant 459 | -10/Materials | Discovered new exit (range 10) 599 | -10/Materials | Discovered new exit (range 7) 1357 | -10/Materials | Discovered new exit (range 11) 1529 | -10/Materials | Discovered new exit (range 17) 1938 | -10/Materials | Discovered new exit (range 5) 1991 | -10/Materials | Entered Subcaves 2095 | -10/Subcaves | Visited 4L-MR0's lab 2147 | -10/Subcaves | Found Lrg. Botcube 2438 | -10/Subcaves | Shifting Twisted Machinery released Flamer 3395 | -10/Subcaves | Core integrity fell below 50% 3498 | -10/Subcaves | Discovered new exit (range 14) 3586 | -10/Subcaves | Lost 3 parts (1n2w) 3637 | -10/Subcaves | Learned Materials emergency access door positions 3806 | -10/Subcaves | Found Cargo Legs 4212 | -10/Subcaves | Entered Materials 4212 | -8/Materials | Evolved 4 slots: Propulsion x1, Utility x3 4311 | -8/Materials | Attached Cargo Legs, gained temporary slots: Utility x2 5189 | -8/Materials | Repaired Carbon-fiber Leg 5233 | -8/Materials | Repaired Reflective Plating 5254 | -8/Materials | Discovered new exit (range 16) 5588 | -8/Materials | Repaired Reflective Plating 6140 | -8/Materials | Crushed by falling debris 6177 | -8/Materials | Discovered new exit (range 15) 7474 | -8/Materials | Lrg. Botcube activated 7512 | -8/Materials | Lrg. Botcube completed mutation into treaded form, armed with 4 guns. 7729 | -8/Materials | Identified exit to Garrison 7734 | -8/Materials | Entered Garrison 7734 | -8/Garrison | Accompanied by 1 ally 7776 | -8/Garrison | Triggered checkpoint 7821 | -8/Garrison | Garrison Relay disabled 7926 | -8/Garrison | Triggered checkpoint 7959 | -8/Garrison | Triggered checkpoint 8151 | -8/Garrison | Triggered checkpoint 8180 | -8/Garrison | Garrison Relay disabled 8202 | -8/Garrison | Discovered new exit (range 14) 8327 | -8/Garrison | Triggered checkpoint 8355 | -8/Garrison | Discovered new exit (range 5) 8423 | -8/Garrison | Discovered new exit (range 11) 8578 | -8/Garrison | Triggered checkpoint 8616 | -8/Garrison | Garrison Relay disabled 8949 | -8/Garrison | Entered Materials 8949 | -8/Materials | Accompanied by 4 allies 9005 | -8/Materials | Build established: Commander-Mutant 9312 | -8/Materials | Build established: Mutant 9621 | -8/Materials | Garrison activated, responded to threat 9701 | -8/Materials | Identified exit to Garrison 9704 | -8/Materials | Entered Garrison 9704 | -8/Garrison | Accompanied by 1 ally 9752 | -8/Garrison | Triggered checkpoint 9787 | -8/Garrison | Garrison Relay disabled 9841 | -8/Garrison | Triggered checkpoint 9888 | -8/Garrison | Triggered checkpoint 10086 | -8/Garrison | Discovered new exit (range 12) 10138 | -8/Garrison | Triggered checkpoint 10237 | -8/Garrison | Rescued a captive Derelict 10266 | -8/Garrison | Triggered checkpoint 10304 | -8/Garrison | Garrison Relay disabled 10320 | -8/Garrison | Learned Factory security intel 10395 | -8/Garrison | Entered Factory 10395 | -7/Factory | Accompanied by 2 allies 10395 | -7/Factory | Evolved 2 slots: Propulsion x1, Utility x1 10472 | -7/Factory | Repaired Imp. Grenade Launcher 10517 | -7/Factory | Repaired Gauss Rifle? 10729 | -7/Factory | Build established: Hacker-Mutant 10740 | -7/Factory | Identified exit to Storage 10740 | -7/Factory | Identified exit to Lower Caves 10795 | -7/Factory | First assault squad dispatched 11115 | -7/Factory | Build established: Mutant 11263 | -7/Factory | Entered Lower Caves 11263 | -7/Lower Caves | Accompanied by 1 ally 11297 | -7/Lower Caves | Met a Warlord Commander 11298 | -7/Lower Caves | Learned location of Warlord (-4) 11299 | -7/Lower Caves | Found Encrypted Comm Array 11379 | -7/Lower Caves | Attracted the attention of an 0b10 outpost 11469 | -7/Lower Caves | Encountered a Warlord checkpoint 11599 | -7/Lower Caves | Attracted the attention of an 0b10 checkpoint 11869 | -7/Lower Caves | Learned location of Extension (-5) 11888 | -7/Lower Caves | Identified exit to Lower Caves 12817 | -7/Lower Caves | Entered another Lower Caves area 12817 | -7/Lower Caves | Accompanied by 3 allies 12898 | -7/Lower Caves | Learned 4 Factory zone layouts 12929 | -7/Lower Caves | Discovered new exit (range 11) 13013 | -7/Lower Caves | Encountered a Warlord checkpoint 13311 | -7/Lower Caves | Learned Factory garrison access intel 13775 | -7/Lower Caves | Discovered new exit (range 7) 13817 | -7/Lower Caves | Entered Data Miner 13817 | -7/Data Miner | Accompanied by 3 allies 13817 | -7/Data Miner | Discovered new exit (range 6) 13841 | -7/Data Miner | Met Data Miner 13886 | -7/Data Miner | Learned location of Section 7 (-2) 13886 | -7/Data Miner | Acquired the access code to Warlord's prototype stash 13903 | -7/Data Miner | Received God Mode back door access code from Data Miner 13941 | -7/Data Miner | Entered Proximity Caves 13941 | -6/Proximity Caves | Accompanied by 3 allies 14083 | -6/Proximity Caves | Learned location of Zion (-6) 14156 | -6/Proximity Caves | Spotted B-75 Beast 14229 | -6/Proximity Caves | Learned Factory emergency access door positions 14254 | -6/Proximity Caves | Attracted the attention of an 0b10 outpost 14272 | -6/Proximity Caves | Escorted by Enhanced Grunt 14301 | -6/Proximity Caves | Lost 3 parts (1p1n1u) 14560 | -6/Proximity Caves | Discovered new exit (range 6) 14595 | -6/Proximity Caves | Entered Factory 14595 | -6/Factory | Accompanied by 6 allies 14595 | -6/Factory | Evolved 2 slots: Power x1, Utility x1 14598 | -6/Factory | Loaded intel: 4 garrison access locations 14797 | -6/Factory | Build established: Commander-Mutant 14829 | -6/Factory | Identified exit to Garrison 14829 | -6/Factory | Entered Garrison 14829 | -6/Garrison | Accompanied by 6 allies 15090 | -6/Garrison | Triggered checkpoint 15101 | -6/Garrison | Garrison Relay disabled 15121 | -6/Garrison | Heavy support dispatched to Factory 15199 | -6/Garrison | Heavy support dispatched to Factory 15248 | -6/Garrison | Triggered checkpoint 15323 | -6/Garrison | Discovered new exit (range 12) 15347 | -6/Garrison | Rescued a captive Derelict 15398 | -6/Garrison | Triggered checkpoint 15422 | -6/Garrison | Garrison Relay disabled 15438 | -6/Garrison | Found embedded Infiltrators 15465 | -6/Garrison | Identified exit to Factory 15466 | -6/Garrison | Build established: Mutant 15566 | -6/Garrison | Triggered checkpoint 15601 | -6/Garrison | Discovered exit to Factory (range 8) 15616 | -6/Garrison | Triggered checkpoint 15649 | -6/Garrison | Garrison Relay disabled 15798 | -6/Garrison | Discovered exit to Factory (range 12) 15829 | -6/Garrison | H-XX Assembler disabled 16187 | -6/Garrison | Phase Generator disabled 16248 | -6/Garrison | Entered Factory 16248 | -6/Factory | Accompanied by 5 allies 16596 | -6/Factory | Discovered new exit (range 12) 16598 | -6/Factory | First assault squad dispatched 16618 | -6/Factory | Identified exit to Lower Caves 16663 | -6/Factory | Entered Lower Caves 16663 | -6/Lower Caves | Accompanied by 5 allies 16955 | -6/Lower Caves | Build established: Skirmisher 17863 | -6/Lower Caves | Discovered new exit (range 9) 18120 | -6/Lower Caves | Learned Factory security intel 18358 | -6/Lower Caves | Identified exit to Lower Caves 18365 | -6/Lower Caves | Entered another Lower Caves area 18365 | -6/Lower Caves | Accompanied by 4 allies 18612 | -6/Lower Caves | Discovered new exit (range 11) 18668 | -6/Lower Caves | Identified exit to Factory 19113 | -6/Lower Caves | Learned Factory garrison access intel 19424 | -6/Lower Caves | Discovered new exit (range 19) 19489 | -6/Lower Caves | Identified exit to Zion 20116 | -6/Lower Caves | Entered Zion 20116 | -6/Zion | Accompanied by 4 allies 20168 | -6/Zion | Acquired unknown access codes intercepted by a Zionite 20241 | -6/Zion | Discovered new exit (range 11) 20315 | -6/Zion | Found CR-A16's Pointy Stick 20458 | -6/Zion | Learned Factory terminal intel 20543 | -6/Zion | Gained Derelict followers 20692 | -6/Zion | Gained Derelict followers 21051 | -6/Zion | Build established: Assassin 21618 | -6/Zion | Identified exit to Proximity Caves 21624 | -6/Zion | Entered Proximity Caves 21624 | -5/Proximity Caves | Accompanied by 13 allies 21713 | -5/Proximity Caves | Spotter reported a threat 21770 | -5/Proximity Caves | Learned Factory garrison access intel 21909 | -5/Proximity Caves | Build established: Skirmisher 22444 | -5/Proximity Caves | Discovered exit to Factory (range 8) 22683 | -5/Proximity Caves | Entered Factory 22683 | -5/Factory | Accompanied by 9 allies 22683 | -5/Factory | Evolved 2 slots: Propulsion x1, Utility x1 22685 | -5/Factory | Loaded intel: 28 terminal locations 22686 | -5/Factory | Loaded intel: 4 garrison access locations 22782 | -5/Factory | Lost 3 allies 22816 | -5/Factory | Identified exit to Upper Caves 22816 | -5/Factory | Identified exit to Extension 23123 | -5/Factory | Build established: Mutant 23133 | -5/Factory | Lost 3 allies 23153 | -5/Factory | Discovered new exit (range 6) 23161 | -5/Factory | Identified exit to Factory 23455 | -5/Factory | Entered Extension 23455 | -5/Extension | Accompanied by 1 ally 23613 | -5/Extension | Build established: Skirmisher 23618 | -5/Extension | Rescued a captive Derelict 23816 | -5/Extension | Rescued a captive Derelict 23817 | -5/Extension | Rescued a captive Derelict 23907 | -5/Extension | Rescued a captive Derelict 23911 | -5/Extension | Rescued a captive Derelict 23942 | -5/Extension | Rescued a captive Derelict 24254 | -5/Extension | Spotted B-75 Beast 24274 | -5/Extension | Allies destroyed B-75 Beast 24283 | -5/Extension | Spotted B-75 Beast 24306 | -5/Extension | Allies destroyed B-75 Beast 24321 | -5/Extension | Build established: Commander-Mutant 24332 | -5/Extension | Lost 5 allies 24395 | -5/Extension | Rescued A7 24603 | -5/Extension | Repaired Hrd. Heavy Armor Plating 24831 | -5/Extension | Lost 6 allies 24842 | -5/Extension | Rescued a captive Derelict 24889 | -5/Extension | Discovered exit to Factory (range 10) 24891 | -5/Extension | Discovered new exit (range 6) 24899 | -5/Extension | Identified exit to Cetus 24914 | -5/Extension | Entered Cetus 24914 | -5/Cetus | Accompanied by 10 allies (A7) 24919 | -5/Cetus | Acquired a Cetus Manufacturing Module code from A7 24933 | -5/Cetus | Spotted Cetus Guard 24933 | -5/Cetus | Spotted Cetus Guard 24934 | -5/Cetus | Spotted Cetus Guard 24934 | -5/Cetus | Spotted Cetus Guard 24941 | -5/Cetus | Allies destroyed Cetus Guard 24953 | -5/Cetus | Allies destroyed Cetus Guard 24958 | -5/Cetus | Allies destroyed Cetus Guard 24964 | -5/Cetus | Allies destroyed Cetus Guard 25010 | -5/Cetus | Started Cetus Manufacturing Module 25035 | -5/Cetus | Manufactured an Enhanced Grunt 25056 | -5/Cetus | Escorted A7 to Cetus Mainframe 25060 | -5/Cetus | Manufactured an Enhanced Grunt 25066 | -5/Cetus | Discovered new exit (range 21) 25073 | -5/Cetus | Lost 3 allies 25085 | -5/Cetus | Manufactured an Enhanced Grunt 25108 | -5/Cetus | Spotted Cetus Guard 25108 | -5/Cetus | Spotted Cetus Guard 25110 | -5/Cetus | Manufactured an Enhanced Grunt 25111 | -5/Cetus | Spotted Cetus Guard 25113 | -5/Cetus | Spotted Cetus Guard 25118 | -5/Cetus | Destroyed Cetus Guard 25126 | -5/Cetus | Allies destroyed Cetus Guard 25131 | -5/Cetus | Discovered exit to Factory (range 21) 25134 | -5/Cetus | Allies destroyed Cetus Guard 25135 | -5/Cetus | Manufactured an Enhanced Grunt 25140 | -5/Cetus | Allies destroyed Cetus Guard 25151 | -5/Cetus | Met Revision 17 25169 | -5/Cetus | Lost 3 allies 25179 | -5/Cetus | Found Exp. Thermal Shield 25223 | -5/Cetus | Identified exit to Archives 25236 | -5/Cetus | Entered Archives 25236 | -5/Archives | Accompanied by 6 allies (A7) 25241 | -5/Archives | Received a hacking code to weaken MAIN.C 25339 | -5/Archives | Met Zhirov 25339 | -5/Archives | Discovered new exit (range 22) 25345 | -5/Archives | Reinforcements dispatched to Archives 25347 | -5/Archives | Discovered new exit (range 21) 25378 | -5/Archives | Identified exit to Hub_04(d) 25390 | -5/Archives | Reinforcements dispatched to Archives 25392 | -5/Archives | Entered Hub_04(d) 25392 | -5/Hub_04(d) | Accompanied by 5 allies 25449 | -5/Hub_04(d) | Spotted B-75 Beast 25453 | -5/Hub_04(d) | Build established: Scavenger-Mutant 25618 | -5/Hub_04(d) | Allies destroyed B-75 Beast 25845 | -5/Hub_04(d) | Found Lrg. Botcube 25867 | -5/Hub_04(d) | Lost 4 allies 25868 | -5/Hub_04(d) | Discovered exit to Factory (range 12) 25927 | -5/Hub_04(d) | Discovered exit to Factory (range 22) 26076 | -5/Hub_04(d) | Network Hub disabled 26076 | -5/Hub_04(d) | Network Hub disabled 26078 | -5/Hub_04(d) | Spotted Lightning 26145 | -5/Hub_04(d) | Entered Factory 26145 | -4/Factory | Evolved 2 slots: Propulsion x1, Utility x1 26146 | -4/Factory | Loaded intel: 4 garrison access locations 26298 | -4/Factory | Discovered new exit (range 6) 26560 | -4/Factory | Lost 4 parts (1p3u) 26573 | -4/Factory | Destroyed 7 combat bots 26683 | -4/Factory | Repaired Centrium Heavy Treads 26885 | -4/Factory | Joined by Warlord Infantry squad 26895 | -4/Factory | First assault squad dispatched 26958 | -4/Factory | Lost 3 allies 27001 | -4/Factory | Spotted B-86 Titan 27071 | -4/Factory | Lost 7 parts (2p1n3u1w) 27078 | -4/Factory | Destroyed 8 combat bots 27216 | -4/Factory | Garrison activated, responded to threat 27273 | -4/Factory | Lost 5 parts (3n1u1w) 27325 | -4/Factory | Joined by Warlord Ghost squad 27471 | -4/Factory | Joined by Warlord Dakka squad 27505 | -4/Factory | Build established: Mutant 27510 | -4/Factory | Discovered new exit (range 12) 27534 | -4/Factory | Identified exit to Research 27578 | -4/Factory | Lost 3 allies 27627 | -4/Factory | Lost 3 parts (1p1n1u) 27773 | -4/Factory | Identified exit to Upper Caves 27888 | -4/Factory | Build established: Scavenger-Mutant 27982 | -4/Factory | System corruption reached 10% 28048 | -4/Factory | Core integrity fell below 50% 28130 | -4/Factory | Released all parts (11) 28134 | -4/Factory | Core integrity fell below 20% 28141 | -4/Factory | Destroyed by G-67 Veteran with Field Laser Last Messages --------------- 28130_ Released Backup Laser I. 28130_ Released Backup Propulsion I. 28130_ Released Adv. Power Amplifier. 28130_ Released Field Recycling Unit. 28130_ Released Huge Storage Unit. 28130_ Released Imp. Weapon Cycler. 28130_ Released Enh. Optical Array. 28130_ Released Adv. Signal Interpreter. 28130_ Released Com. Wheel. 28130_ Released Backup Propulsion I. 28130_ Released Hvy. Battle Rifle. 28132_ Slug penetrates Wall. 28133_ Penetrated by Slug. 28133_ Slug penetrates H-77 Assassin. 28135_ Slug penetrates Wall. 28135_ Penetrated by Slug. 28136_ ALERT: Hostiles spotted, dispatching reinforcements to Terminal F011. 28138_ ALERT: Garrison Access compromised, dispatching assault squad. 28141_ Critical hit (Burn: +37). Map ----- +----------------------------------------------------+ | ?????# #?????????????????????????????????????????? | | ?????# #?????????????????????????????????????????? | | ?????# #?????????????????????????????????????????? | | ?????# #?????????????????????????????????????????? | | ?????# #?????????????????????????????????????????? | | ?????# #?????????????????????????????????????????? | | ?????# #?????????????????????????????????????????? | | ?????# #?????????????????????????????????????????? | | ?????# #?????????????????????????????????????????? | | ?????# #?????????????????????????????????????????? | | ?????# #?????????????????????????????????????????? | | ?????# #?????????????????????????????????????????? | | ?????# #?????????????????????????????????????????? | | ?????#!#?????????????????????????????????????????? | | ???###!############+####?????????????????????????? | | ???# !=[!| #?????????????????????????? | | ???# /]!]! #?????????????????????????? | | ???# =!]!= #?????????????????????????? | | ???# [ s #?????????????????????????? | | ???# #?????????????????????????? | | ???# ###### #?????????????????????????? | | ???# ######s#######???????????????????? | | # s #???????????????????? | | # " #???????????????????? | | # "G" #???????????????????? | | # @ " #???????????????????? | | # """ ! #???????????????????? | | ########### # """ ggg #???????????????????? | | ??????????# # """ [ #???????????????????? | | ??????????# # #???????????????????? | | ??????????# ^ # """ """ #???????????????????? | | ??????????# # """ """ #???????????????????? | | ??????????+ + """ """ #???????????????????? | | ??????????# #? #???????????????????? | | ??????????? ????##########???????????????????? | | ????????????? ?????????????????????????????????? | | ?????????????????????????????????????????????????? | | ?????????????????????????????????????????????????? | | ?????????????????????????????????????????????????? | | ?????????????????????????????????????????????????? | | ?????????????????????????????????????????????????? | | ?????????????????????????????????????????????????? | | ?????????????????????????????????????????????????? | | ?????????????????????????????????????????????????? | | ?????????????????????????????????????????????????? | | ?????????????????????????????????????????????????? | | ?????????????????????????????????????????????????? | | ?????????????????????????????????????????????????? | | ?????????????????????????????????????????????????? | | ?????????????????????????????????????????????????? | +----------------------------------------------------+ Best States ------------- Heat Dissipation 94 Energy Generation 37 Energy Capacity 540 Matter Stores 300 Matter Capacity 300 Sight Range 22 Robot Scan Range 15 Terrain Scan Density 10 Jamming Range 16 Power Amplification 30 Armor Coverage 1650 Resistance: KI 30 Resistance: TH 30 Propulsion Shielding 33 Weapon Cycling 20 Evasion (%) 55 Targeting Accuracy 8 Recoil Reduction 5 Offensive Hacking 12 Defensive Hacking 11 Item Schematics ----------------- Combat Drone Bay | -7/Data Miner | Free Lgt. Regenerative Plating | -7/Data Miner | Free Cld. Aerolev Unit | -7/Data Miner | Free Gravity Neutralizer | -7/Data Miner | Free Ion Burst Cannon | -7/Data Miner | Free Linear Gravjet | -7/Data Miner | Free Recoil Nullifier | -7/Data Miner | Free Disruptor Cannon | -7/Data Miner | Free Lrn. Proton Cannon | -7/Data Miner | Free Robot Schematics ------------------ A-15 Conveyor | -7/Data Miner | Free E-15 Imp | -7/Data Miner | Free B-48 Gladiator | -7/Data Miner | Free L-41 Fighter | -7/Data Miner | Free X-72 Disruptor | -7/Data Miner | Free G-50 Soldier | -7/Data Miner | Free Fabricated ------------ Nothing Alien Tech Used ----------------- None Achievements -------------- None Challenges ------------ None Game ------ Seed LightpackLobotomyChronowheel Manual? 0 Play Time 03:08:28 Cumulative 1411.8 hours Start 2023.12.20 @ 02:52:46 End 2023.12.20 @ 18:35:29 Sessions 5 Manual Loads 0 Difficulty Rogue Special Mode None Game No. 1001 Rogue 997 Adventurer 4 Explorer 0 Win Type - Total 168 Types 126/11/10/7/2/1/1/6/4 Lore% 95 Gallery% 98 Achievement% 98 Wizard Run 0 Options --------- ASCII 0 Keyboard 1 Movement Vi Keybinds 0 Fullscreen 0 Font 20/X11 Map View 76x50 Zoom Use 0% Tactical HUD 1 Map Filters NONE Filters NONE Steam 1 RUN: 1fe50c82-fde1-4225-8f77-71f5cade88a0